bitfinex/quotes_ETHUSD_20250422
["timestamp","ask_amount","ask_price","bid_price","bid_amount"]
[1745359417278,18.761,1757.5,1756.4,5.69333955]
[1745359417475,18.761,1757.5,1756.2,5.69399152]
[1745359417777,18.761,1757.5,1756.2,8.69411228]
[1745359417975,1.8761,1757.4,1756.4,4.49885269]
[1745359418344,1.8761,1757.4,1756.3,0.29609647]
[1745359418549,0.55,1757.3,1756.3,0.29609647]
[1745359419069,6.24069113,1757.3,1756.2,0.05692915]
[1745359419268,0.55,1757.3,1756.2,0.05692915]
[1745359419580,0.55,1757.3,1756.4,4.49885269]
[1745359419785,1.8761,1757.4,1756.4,4.49885269]
[1745359420363,1.8761,1757.4,1756.5,0.05692167]
[1745359420657,1.8761,1757.4,1756.7,4.49885269]
[1745359420868,0.00930875,1757.7,1757.0,4.49885269]
[1745359421067,0.00930875,1757.7,1757.0,10.19023919]
[1745359421269,0.00930875,1757.7,1757.3,4.49885269]
[1745359421476,0.00930875,1757.7,1757.0,4.49885269]
[1745359422595,5.69858652,1757.7,1756.8,4.49885269]
[1745359422799,0.56985865,1757.6,1756.8,4.49885269]
[1745359423005,0.00930875,1757.7,1757.1,4.49885269]
[1745359423368,0.00930875,1757.7,1756.9,4.49885269]
[1745359423758,0.00930875,1757.7,1757.3,5.69037548]
[1745359423964,0.00930875,1757.7,1757.5,4.49885269]
[1745359425099,0.00930875,1757.7,1757.2,4.49885269]
[1745359426413,0.00930875,1757.7,1757.3,5.69033377]
[1745359426566,0.00930875,1757.7,1757.5,4.49885269]
[1745359426902,0.00930875,1757.7,1757.6,11.13119524]
[1745359427105,0.00930875,1757.7,1757.6,9.10300793]
[1745359427405,0.4024811,1758.2,1757.9,5.688493]
[1745359427604,0.4024811,1758.2,1758.0,15.6237388]
[1745359427898,0.4024811,1758.2,1758.1,3.674562]
[1745359428108,0.4024811,1758.2,1757.9,0.41873194]
[1745359428267,0.4024811,1758.2,1758.0,2.26059]
[1745359428602,0.4024811,1758.2,1757.7,4.49885269]
[1745359428772,0.4024811,1758.2,1757.7,4.93097109]
[1745359429105,0.4024811,1758.2,1757.7,10.62022225]
[1745359429407,0.4024811,1758.2,1757.7,10.62019212]
[1745359429906,0.4024811,1758.2,1758.0,4.49885269]
[1745359430112,0.4024811,1758.2,1758.1,2.252711]
[1745359430601,0.4024811,1758.2,1757.7,10.18797642]
[1745359430928,0.4024811,1758.2,1757.7,4.49885269]
[1745359431408,0.4024811,1758.2,1757.8,0.05687842]
[1745359431597,0.4024811,1758.2,1757.7,10.62204759]
[1745359431796,0.4024811,1758.2,1757.8,5.68887265]
[1745359431972,0.4024811,1758.2,1757.7,10.62204759]
[1745359432205,0.4024811,1758.2,1757.7,4.93281586]
[1745359432607,0.4024811,1758.2,1757.8,0.05687837]
[1745359432844,0.4024811,1758.2,1757.9,5.68859271]
[1745359433008,0.4024811,1758.2,1757.9,5.68836146]
[1745359433351,0.4024811,1758.2,1757.8,5.68878705]
[1745359433707,0.4024811,1758.2,1758.0,4.49885269]
[1745359434234,0.4024811,1758.2,1758.1,2.24976]
[1745359434544,0.4024811,1758.2,1758.0,4.49885269]
[1745359435510,0.4024811,1758.2,1757.7,10.60761966]
[1745359435711,0.4024811,1758.2,1757.9,5.68847538]
[1745359435962,0.4024811,1758.2,1758.0,5.7451428]
[1745359436242,0.4024811,1758.2,1757.9,5.68843851]
[1745359436442,0.4024811,1758.2,1758.1,5.68795859]
[1745359436754,0.4024811,1758.2,1758.1,13.71000459]
[1745359436955,0.4024811,1758.2,1758.1,16.71000459]
[1745359437152,0.005,1759.3,1758.6,5.6861607]
[1745359437376,0.005,1759.3,1758.5,4.49885269]
[1745359437775,0.005,1759.3,1758.5,5.68651943]
[1745359437935,0.005,1759.3,1758.5,5.68638687]
[1745359438141,0.005,1759.3,1758.5,4.49885269]
[1745359438335,0.005,1759.3,1759.1,4.49885269]
[1745359438539,0.4024811,1759.9,1759.3,6.23407889]
[1745359438788,0.4024811,1759.9,1759.8,6.49146391]
[1745359438941,0.03134528,1760.0,1759.9,8.68214103]
[1745359439278,10.485,1761.4,1759.9,8.630481]
[1745359439479,1.0485,1761.3,1760.2,4.49885269]
[1745359439646,5.67810707,1761.2,1760.2,4.49885269]
[1745359439983,5.67810707,1761.2,1759.8,6.4912638]
[1745359439984,1.0485,1761.3,1760.0,0.43172239]
[1745359440186,1.0485,1761.3,1759.5,0.809]
[1745359440187,5.67826926,1761.1,1759.5,0.809]
[1745359440342,3.0,1760.8,1759.1,4.49885269]
[1745359440536,0.55,1760.2,1759.0,4.49885269]
[1745359440768,5.68037264,1760.5,1759.3,4.49885269]
[1745359441034,0.55,1760.4,1759.0,4.91430296]
[1745359441288,0.55,1759.7,1758.7,4.49885269]
[1745359441445,0.55,1759.4,1758.3,4.49885269]
[1745359441848,10.485,1759.6,1758.4,5.68684497]
[1745359442049,10.485,1759.6,1758.4,5.68692519]
[1745359442253,10.484,1760.1,1758.6,4.49885269]
[1745359442449,0.55,1760.0,1758.6,10.18506194]
[1745359442652,0.55,1760.0,1758.8,5.68566251]
[1745359442976,5.68231459,1759.9,1758.6,4.49885269]
[1745359443175,5.68228561,1759.9,1758.6,4.49885269]
[1745359443378,1.67155398,1760.0,1758.6,10.1849828]
[1745359443595,5.68228794,1759.9,1758.6,10.1849828]
[1745359443809,7.3535549,1760.0,1758.7,5.68591125]
[1745359443959,0.73535549,1759.9,1758.6,10.18510847]
[1745359444295,0.73535549,1759.9,1758.6,10.18496009]
[1745359444498,0.73535549,1759.9,1758.7,5.6859965]
[1745359444800,0.55,1759.8,1758.6,4.49885269]
[1745359445100,0.55,1759.3,1758.0,4.49885269]
[1745359445257,10.483,1759.2,1758.0,4.49885269]
[1745359445457,10.483,1759.2,1758.3,4.49885269]
[1745359445895,11.17975158,1759.8,1758.5,5.68666477]
[1745359446101,1.11797516,1759.7,1758.6,4.49885269]
[1745359446396,1.11797516,1759.7,1758.7,5.74259344]
[1745359446697,1.11797516,1759.7,1758.6,10.18492107]
[1745359446901,1.11797516,1759.7,1758.8,5.68559922]
[1745359447064,1.11797516,1759.7,1758.7,5.68581989]
[1745359447263,1.11797516,1759.7,1758.6,10.18504558]
[1745359447488,1.11797516,1759.7,1758.7,5.68601808]
[1745359447687,10.483,1759.8,1758.9,4.49885269]
[1745359447884,10.483,1759.8,1758.9,10.18422126]
[1745359448055,18.746,1760.1,1758.9,10.18401225]
[1745359448259,5.68226709,1759.9,1758.9,4.49885269]
[1745359448461,0.55,1759.7,1758.6,4.91475972]
[1745359448694,10.482,1759.6,1758.6,4.49885269]
[1745359449078,0.55,1759.5,1758.3,4.49885269]
[1745359449402,6.23461268,1759.2,1758.1,0.42344651]
[1745359449699,0.55,1759.1,1757.6,4.49885269]
[1745359449857,5.68811535,1758.1,1757.1,4.49885269]
[1745359450063,5.68811535,1758.1,1756.8,0.8168]
[1745359450064,0.55,1758.0,1756.8,4.49885269]
[1745359450303,3.55,1757.8,1755.4,0.8168]
[1745359450458,5.69054799,1757.3,1755.9,10.19370316]
[1745359450799,10.482,1757.2,1755.9,10.19370316]
[1745359450997,1.5982,1757.1,1756.0,0.05693275]
[1745359451206,1.5982,1757.1,1756.0,0.62643275]
[1745359451371,1.5982,1757.1,1756.0,0.5695]
[1745359451575,1.5982,1757.1,1755.9,4.49885269]
[1745359451576,1.5982,1757.1,1755.9,10.25086859]
[1745359451774,10.482,1757.2,1756.2,4.49885269]
[1745359452003,10.482,1757.2,1756.4,5.69329001]
[1745359452199,5.68928083,1757.7,1756.5,10.2487945]
[1745359452200,10.486,1757.7,1756.5,10.2487945]
[1745359452408,10.486,1757.7,1756.7,5.69226193]
[1745359452709,10.486,1757.7,1756.8,4.55576407]
[1745359453009,10.486,1757.7,1756.9,5.69160077]
[1745359453215,10.486,1757.7,1756.8,10.19089834]
[1745359453421,10.486,1757.7,1756.9,5.69184258]
[1745359453614,10.486,1757.7,1756.8,4.49885269]
[1745359453984,10.486,1757.7,1756.9,0.05691162]
[1745359454180,19.302,1758.0,1756.8,4.49885269]
[1745359454181,18.752,1758.0,1756.8,4.49885269]
[1745359454386,18.752,1758.0,1757.1,4.49885269]
[1745359455125,0.2968258,1758.6,1757.7,5.68896818]
[1745359455308,0.67846127,1759.1,1758.1,5.68794316]
[1745359455514,10.488,1759.3,1758.1,5.68795859]
[1745359455719,10.488,1759.3,1758.2,5.68748054]
[1745359456015,10.488,1759.3,1757.7,4.49885269]
[1745359456176,10.488,1759.3,1757.5,4.49885269]
[1745359456177,5.68472514,1759.1,1757.5,4.49885269]
[1745359456377,0.55,1758.8,1757.5,4.49885269]
[1745359456591,1.17354828,1758.8,1757.5,4.49885269]
[1745359456883,0.55,1758.6,1757.3,4.49885269]
[1745359457096,0.55,1758.4,1757.3,4.49885269]
[1745359457297,5.68744859,1758.3,1757.0,10.95506772]
[1745359457599,0.55,1757.8,1756.6,10.19166776]
[1745359457796,11.66086911,1757.8,1756.5,5.69292099]
[1745359458016,30.41486911,1757.8,1756.3,4.49885269]
[1745359458212,0.55,1757.5,1756.3,4.49885269]
[1745359458414,5.69151963,1757.0,1755.6,5.69591327]
[1745359458718,10.487,1756.9,1755.5,10.9597607]
[1745359458881,0.55,1756.6,1755.3,4.49885269]
[1745359459085,6.24299792,1756.6,1755.3,4.49885269]
[1745359459305,3.55,1756.6,1754.9,5.69819615]
[1745359459517,0.55,1756.1,1754.9,4.49885269]
[1745359459719,0.55,1755.9,1754.7,0.4024811]
[1745359460022,6.24573671,1755.7,1754.7,0.4024811]
[1745359460207,0.55,1755.3,1754.7,0.4024811]
[1745359460526,0.55,1754.9,1754.7,0.4024811]
[1745359460723,6.24839451,1754.9,1754.7,0.4024811]
[1745359461019,5.69946632,1754.6,1753.0,6.2044053]
[1745359461321,0.62483945,1754.8,1753.7,4.49885269]
[1745359461522,0.55,1755.5,1754.3,4.49885269]
[1745359461818,3.55,1755.5,1754.2,5.7005468]
[1745359462131,3.55,1755.5,1753.9,4.49885269]
[1745359462293,5.04885269,1755.3,1753.6,5.26355269]
[1745359462489,9.24780559,1755.1,1753.5,4.49885269]
[1745359462691,0.92478056,1755.0,1753.1,0.7647]
[1745359463023,0.55,1755.1,1753.9,4.49885269]
[1745359463222,0.55,1754.9,1753.6,4.49885269]
[1745359463422,0.55,1754.7,1753.6,4.49885269]
[1745359463594,5.6996088,1754.6,1753.3,4.49885269]
[1745359463793,16.19575216,1754.8,1753.3,4.49885269]
[1745359463794,10.497,1754.8,1753.3,4.49885269]
[1745359464132,10.497,1755.3,1754.0,5.70098244]
[1745359464341,10.497,1755.3,1754.2,5.70043211]
[1745359464493,0.55,1755.2,1753.9,10.20038112]
[1745359464824,0.55,1755.2,1753.9,4.49885269]
[1745359464996,0.55,1755.2,1754.2,4.49885269]
[1745359465188,1.1047,1755.2,1754.0,5.75814201]
[1745359465530,1.1047,1755.2,1754.1,0.05699764]
[1745359465836,1.1047,1755.2,1754.3,10.19912567]
[1745359466017,1.1047,1755.2,1754.3,4.49885269]
[1745359466228,1.1047,1755.2,1754.1,10.1996804]
[1745359466565,1.1047,1755.2,1754.4,4.49885269]
[1745359466848,1.1037,1755.9,1755.0,4.49885269]
[1745359467055,5.69592778,1755.7,1754.3,24.47719414]
[1745359467216,0.55,1755.5,1754.2,0.7877]
[1745359467399,0.55,1755.5,1754.2,4.49885269]
[1745359467606,18.777,1755.5,1754.2,4.49885269]
[1745359467928,18.777,1755.5,1753.6,6.49019715]
[1745359467929,0.55,1755.3,1754.3,4.49885269]
[1745359468106,0.55,1755.0,1754.0,4.49885269]
[1745359468309,0.55,1755.3,1754.3,4.49885269]
[1745359468715,6.24749824,1755.2,1754.3,4.49885269]
[1745359469042,6.2470606,1755.3,1754.3,4.49885269]
[1745359469208,0.55,1754.9,1754.0,4.49885269]
[1745359469405,11.032,1754.9,1754.0,4.49885269]
[1745359469609,10.482,1754.9,1754.0,4.49885269]
[1745359469869,0.55,1755.1,1754.1,8.70089438]
[1745359470048,0.55,1755.3,1754.2,5.70045058]
[1745359470344,12.3597,1755.4,1754.1,8.70089438]
[1745359470345,1.8777,1755.4,1754.6,10.19801264]
[1745359470547,10.482,1755.9,1754.9,10.19713065]
[1745359470743,24.47527783,1756.2,1754.9,4.49885269]
[1745359470945,5.99240688,1755.8,1754.9,4.49885269]
[1745359471111,8.69458904,1756.1,1754.9,4.49885269]
[1745359471307,3.0,1755.9,1754.6,4.49885269]
[1745359471557,0.55,1755.2,1754.3,4.49885269]
[1745359472052,0.55,1754.8,1753.7,4.49885269]
[1745359472348,0.55,1755.1,1754.0,4.49885269]
[1745359472550,0.55,1755.0,1754.0,4.49885269]
[1745359472919,6.24782842,1755.1,1754.0,4.49885269]
[1745359473125,0.55,1754.8,1753.8,4.49885269]
[1745359473324,5.69921987,1754.7,1753.5,8.28655269]
[1745359473531,0.55,1754.3,1753.2,4.49885269]
[1745359474151,6.25046088,1754.3,1753.2,4.49885269]
[1745359474459,0.55,1754.3,1753.2,4.49885269]
[1745359474644,2.4832,1754.3,1753.2,4.49885269]
[1745359474853,0.55,1754.1,1753.2,4.49885269]
[1745359475151,0.55,1753.9,1753.0,0.5]
[1745359475321,11.036,1753.9,1753.0,0.5]
[1745359475521,11.036,1753.9,1753.0,0.55704394]
[1745359475748,11.036,1753.9,1753.0,0.5]
[1745359475749,1.1036,1753.8,1753.0,0.5]
[1745359476164,6.25224115,1753.7,1753.0,0.5]
[1745359476464,0.55,1753.7,1753.0,0.5]
[1745359476822,6.25236627,1753.7,1753.0,0.5]
[1745359477030,0.55,1753.4,1753.0,0.5]
[1745359477238,1.17530122,1753.4,1753.0,0.5]
[1745359477637,6.87865015,1753.4,1753.0,0.5]
[1745359477841,0.62530122,1753.4,1753.0,0.5]
[1745359478054,0.55,1753.3,1753.0,0.5]
[1745359478262,0.62530122,1753.4,1753.0,0.5]
[1745359478473,18.794,1754.5,1753.0,4.99885269]
[1745359478659,11.5346,1753.9,1753.0,5.78655269]
[1745359478961,0.55,1753.8,1753.0,5.78655269]
[1745359479149,0.55,1753.8,1753.0,1.2877]
[1745359479346,0.55,1753.6,1753.0,0.5]
[1745359479549,6.25314256,1753.5,1753.0,0.5]
[1745359479753,0.62531426,1753.4,1753.0,0.5]
[1745359480357,18.794,1753.6,1753.0,0.5]
[1745359480568,11.5346,1753.9,1753.0,0.5]
[1745359481482,11.5346,1753.9,1753.1,4.49885269]
[1745359481483,10.486,1753.9,1753.1,4.49885269]
[1745359481838,10.486,1753.9,1753.0,0.5]
[1745359482034,0.55,1753.8,1753.0,0.5]
[1745359482233,10.486,1753.9,1753.0,0.5]
[1745359482474,29.285,1754.3,1753.2,4.49885269]
[1745359482986,5.70076577,1754.2,1753.2,4.49885269]
[1745359483144,6.25093799,1754.1,1753.2,4.49885269]
[1745359483343,0.55,1753.9,1753.0,0.5]
[1745359483771,5.70095422,1754.1,1753.0,0.5]
[1745359483935,0.55,1753.9,1753.0,0.5]
[1745359484136,0.57009542,1754.0,1753.2,4.49885269]
[1745359484391,0.55,1754.2,1753.2,4.44885269]
[1745359484586,29.285,1754.3,1753.2,10.15267395]
[1745359484794,29.285,1754.3,1753.2,4.44885269]
[1745359484937,5.70073761,1754.2,1753.2,4.44885269]
[1745359485138,5.70174544,1753.9,1753.0,0.5]
[1745359485377,0.57017454,1753.8,1753.0,0.5]
[1745359485677,29.285,1754.3,1753.3,5.70339805]
[1745359485846,29.285,1754.3,1753.3,0.05702637]
[1745359486046,29.285,1754.3,1753.2,4.49885269]
[1745359486250,29.285,1754.3,1753.2,10.20267738]
[1745359486589,29.285,1754.3,1753.6,0.8221]
[1745359486758,2.9285,1754.2,1753.6,0.8221]
[1745359487276,0.55,1754.1,1753.3,0.8221]
[1745359487773,0.55,1754.1,1753.0,1.3221]
[1745359488168,6.25173008,1753.9,1753.0,0.5]
[1745359488345,0.55,1753.8,1753.0,0.5]
[1745359488685,1.1751754,1753.8,1753.0,0.5]
[1745359489043,5.70141096,1754.0,1753.0,0.5]
[1745359489044,6.25128852,1754.0,1753.0,0.5]
[1745359489378,3.55,1754.1,1753.0,0.5]
[1745359489564,3.55,1753.9,1753.0,0.5]
[1745359489876,0.55,1753.9,1753.0,0.5]
[1745359490288,0.55,1753.6,1753.0,0.5]
[1745359490580,10.493,1753.5,1753.0,0.5]
[1745359491380,0.55,1753.4,1753.0,0.5]
[1745359491676,10.493,1753.5,1753.0,0.5]
[1745359491878,10.493,1754.0,1753.0,0.5]
[1745359492099,10.493,1754.6,1753.3,0.8221]
[1745359492269,1.0493,1754.5,1753.4,5.70299761]
[1745359492444,1.0493,1754.5,1753.5,4.49885269]
[1745359492794,18.802,1755.1,1753.8,4.49885269]
[1745359492795,0.42973868,1755.0,1753.8,4.49885269]
[1745359493146,5.6980783,1755.0,1753.8,4.49885269]
[1745359493581,5.981,1754.9,1753.8,4.49885269]
[1745359493786,6.12012138,1755.0,1753.7,0.8221]
[1745359494084,0.55,1754.4,1753.4,0.8221]
[1745359494382,10.493,1754.3,1753.5,4.49885269]
[1745359494683,1.0493,1754.2,1753.5,4.49885269]
[1745359494889,0.55,1754.1,1753.4,0.8221]
[1745359495196,12.23196045,1754.1,1753.1,0.8221]
[1745359495347,12.23282125,1753.9,1753.0,0.5]
[1745359495549,0.55,1753.5,1753.0,0.5]
[1745359495842,0.55,1753.7,1753.0,0.5]
[1745359495843,0.55,1753.3,1753.0,0.5]
[1745359496049,12.23472148,1753.3,1753.0,0.5]
[1745359496264,31.03665766,1753.3,1753.0,0.5]
[1745359496465,19.352,1753.3,1753.0,0.5]
[1745359496785,22.3365,1753.3,1753.0,0.5]
[1745359496963,28.04015766,1753.3,1753.0,0.5]
[1745359497164,0.55,1753.1,1753.0,0.5]
[1745359498311,6.25418116,1753.1,1753.0,0.5]
[1745359498609,0.55,1753.1,1753.0,0.5]
[1745359498899,1.77349728,1753.1,1753.0,0.5]
[1745359499273,1.77349728,1753.1,1752.9,0.4024811]
[1745359499274,7.75449728,1753.1,1752.9,0.4024811]
[1745359499467,21.7865,1753.3,1752.9,0.4024811]
[1745359499768,18.802,1753.3,1752.9,0.4024811]
[1745359500886,1.22328213,1753.8,1752.9,0.4024811]
[1745359501068,10.471,1753.9,1752.9,0.4024811]
[1745359501410,10.471,1753.9,1753.0,4.49885269]
[1745359502605,24.50413864,1755.0,1753.6,4.49885269]
[1745359502775,24.50413864,1755.0,1753.5,0.8039]
[1745359502776,29.277,1755.0,1754.0,0.8039]
[1745359502977,2.9277,1754.9,1754.0,0.8039]
[1745359503211,2.9277,1754.9,1753.7,5.30275269]
[1745359503378,3.0,1754.8,1753.7,0.8039]
[1745359503573,5.69950389,1754.6,1753.7,0.8039]
[1745359503775,5.699195,1754.7,1753.7,0.8039]
[1745359504107,5.70015203,1754.4,1753.7,0.8039]
[1745359504317,0.89087,1754.8,1753.7,0.8039]
[1745359504318,11.94912089,1754.6,1753.7,0.8039]
[1745359504530,6.24942915,1754.6,1753.7,0.8039]
[1745359504675,0.55,1754.3,1753.7,0.8039]
[1745359504875,1.17502425,1754.3,1753.7,0.8039]
[1745359505078,0.62502425,1754.3,1753.7,0.8039]
[1745359505305,0.55,1754.4,1753.7,0.8039]
[1745359505629,10.471,1755.0,1754.1,4.49885269]
[1745359505831,10.47,1755.5,1754.5,0.8039]
[1745359506512,18.804,1755.7,1754.7,10.19769157]
[1745359506815,16.16502078,1756.0,1754.8,0.8039]
[1745359507011,5.69508854,1755.9,1754.8,0.8039]
[1745359507183,10.47,1756.0,1755.0,4.49885269]
[1745359507497,18.804,1756.4,1755.4,0.8039]
[1745359507905,10.47,1756.5,1755.6,4.49885269]
[1745359508091,10.47,1756.5,1755.4,0.8039]
[1745359508092,1.047,1756.4,1755.4,0.8039]
[1745359508700,1.047,1756.4,1755.5,0.05695856]
[1745359509010,1.047,1756.4,1755.6,4.49885269]
[1745359509211,1.047,1756.4,1755.4,0.86085626]
[1745359509212,1.047,1756.4,1755.4,0.8039]
[1745359509423,0.55,1756.3,1755.4,0.8039]
[1745359509590,5.69433452,1756.2,1755.4,0.8039]
[1745359509779,0.51943345,1756.1,1755.4,0.8039]
[1745359509980,0.55,1756.0,1755.4,0.8039]
[1745359510721,6.2450138,1756.0,1755.4,0.8039]
[1745359510891,6.24492024,1756.0,1755.4,0.8039]
[1745359511090,0.55,1756.3,1755.4,0.8039]
[1745359511302,0.55,1756.2,1755.4,0.8039]
[1745359511504,0.55,1756.2,1753.8,5.70167925]
[1745359511505,0.55,1755.6,1754.4,4.49885269]
[1745359511824,0.55,1755.3,1754.7,0.7882]
[1745359511986,6.24711764,1755.3,1754.7,0.7882]
[1745359512194,16.16049801,1755.5,1754.7,0.7882]
[1745359512389,7.31302323,1755.4,1754.7,0.7882]
[1745359512592,1.6160498,1755.4,1754.7,0.7882]
[1745359512989,7.312963,1755.4,1754.7,0.7882]
[1745359513197,5.69790844,1755.1,1754.3,0.7882]
[1745359513432,0.55,1755.3,1754.3,0.7882]
[1745359513634,5.69910768,1754.7,1754.3,0.7882]
[1745359513796,5.70000639,1754.4,1753.7,0.7882]
[1745359513995,6.24985894,1754.5,1753.7,0.7882]
[1745359514197,5.70014976,1754.4,1753.7,0.7882]
[1745359514607,0.55,1754.2,1753.4,0.7882]
[1745359514957,0.55,1753.4,1753.0,0.7882]
[1745359515093,6.87867305,1753.4,1752.9,0.4024811]
[1745359515293,0.62531592,1753.4,1752.9,0.4024811]
[1745359515495,16.1671234,1753.5,1752.9,0.4024811]
[1745359515713,10.464,1753.5,1752.9,0.4024811]
[1745359516133,16.1669227,1753.5,1752.9,0.4024811]
[1745359516292,6.25322765,1753.4,1752.9,0.4024811]
[1745359516492,0.55,1753.4,1752.9,0.4024811]
[1745359516798,0.55,1753.3,1752.9,0.4024811]
[1745359517126,6.25379778,1753.3,1752.9,0.4024811]
[1745359517328,0.55,1753.3,1752.9,0.4024811]
[1745359517626,10.467,1754.0,1753.0,0.7882]
[1745359517826,10.467,1754.2,1753.1,4.49885269]
[1745359518027,10.467,1754.2,1753.5,0.7882]
[1745359518228,0.56991077,1754.6,1753.5,0.7882]
[1745359518529,18.798,1755.1,1754.0,4.49885269]
[1745359518748,18.798,1755.1,1754.1,0.7882]
[1745359519248,1.6160498,1755.4,1754.6,4.49885269]
[1745359519450,29.265,1755.8,1754.9,4.49885269]
[1745359519756,10.467,1756.4,1755.2,4.49885269]
[1745359519919,1.0467,1756.3,1755.2,4.49885269]
[1745359520117,1.0467,1756.3,1755.0,3.7882]
[1745359520118,1.0467,1756.3,1755.1,5.69763185]
[1745359520342,1.0467,1756.3,1755.1,0.7882]
[1745359520744,1.0467,1756.3,1755.3,10.1958426]
[1745359520944,1.0467,1756.3,1755.6,4.49885269]
[1745359521330,1.0467,1756.3,1755.4,3.7882]
[1745359521527,1.0467,1756.3,1755.4,0.7882]
[1745359522340,1.0467,1756.3,1755.5,0.0569665]
[1745359522630,10.467,1756.4,1755.4,0.7882]
[1745359523220,5.69411228,1756.2,1755.4,0.7882]
[1745359523458,6.24469122,1756.1,1755.4,0.7882]
[1745359523659,6.24448178,1756.1,1755.4,0.7882]
[1745359523867,5.69524154,1755.9,1755.4,0.7882]
[1745359524028,0.56952415,1755.8,1755.4,0.7882]
[1745359524354,6.24455189,1756.1,1755.4,0.7882]
[1745359524656,3.0,1756.1,1755.4,0.7882]
[1745359524970,0.55,1756.1,1755.4,0.7882]
[1745359525326,10.467,1756.4,1755.4,0.7882]
[1745359525521,16.16072088,1756.4,1755.4,0.7882]
[1745359525722,1.61607209,1756.3,1755.4,0.7882]
[1745359525928,1.61607209,1756.3,1755.5,0.05696017]
[1745359526348,1.61607209,1756.3,1755.4,0.7882]
[1745359526539,0.55,1756.2,1755.4,0.7882]
[1745359526960,5.69530564,1755.9,1755.4,0.7882]
[1745359527144,6.26502281,1755.8,1755.4,0.7882]
[1745359527338,10.981,1755.7,1755.0,0.7729]
[1745359527540,0.55,1755.4,1754.7,0.7729]
[1745359527754,5.69787293,1755.1,1754.7,0.7729]
[1745359527953,10.431,1755.1,1754.7,0.7729]
[1745359528173,29.219,1755.6,1754.7,0.7729]
[1745359528385,5.69692221,1755.4,1754.7,0.7729]
[1745359528565,10.431,1756.2,1754.9,0.7729]
[1745359528745,10.431,1756.2,1755.2,0.7729]
[1745359528935,5.69443653,1756.1,1755.2,0.7729]
[1745359529141,3.0,1756.1,1755.2,0.7729]
[1745359529378,5.69573539,1755.7,1755.2,0.7729]
[1745359529581,0.55,1755.9,1755.2,0.7729]
[1745359529761,5.69599361,1755.7,1755.2,0.7729]
[1745359530075,5.69624997,1755.6,1755.2,0.7729]
[1745359530278,0.55,1755.7,1755.2,0.7729]
[1745359530279,5.69541427,1755.8,1755.2,0.7729]
[1745359530476,0.3,1756.0,1755.2,0.7729]
[1745359530639,5.69462365,1756.1,1755.2,0.7729]
[1745359530836,10.431,1756.2,1754.0,0.7729]
[1745359531038,5.69485601,1756.0,1754.0,0.7729]
[1745359531237,0.55,1756.0,1754.1,0.7729]
[1745359531453,6.24683701,1755.4,1754.3,0.7729]
[1745359531749,5.69794546,1755.1,1754.3,0.7729]
[1745359531949,0.26903234,1755.3,1754.3,0.7729]
[1745359532248,0.26846236,1755.2,1754.4,6.47284719]
[1745359532459,18.79,1755.6,1754.7,0.7729]
[1745359532664,10.432,1755.9,1754.8,0.82987466]
[1745359532859,0.22528104,1755.5,1755.1,0.7729]
[1745359533063,10.432,1755.9,1755.1,0.7729]
[1745359533374,0.22471119,1755.4,1755.1,0.7729]
[1745359533548,5.69579313,1755.7,1755.1,0.7729]
[1745359533752,0.22414128,1755.3,1755.1,0.7729]
[1745359533955,5.69645813,1755.5,1755.1,0.7729]
[1745359534152,0.2235713,1755.2,1755.1,0.7729]
[1745359534473,1.0432,1755.8,1755.1,0.7729]
[1745359534689,1.71704581,1755.8,1755.1,0.7729]
[1745359534845,0.22642054,1755.7,1755.1,0.7729]
[1745359535267,5.92230614,1755.7,1755.1,0.7729]
[1745359535654,0.22642054,1755.7,1755.1,0.7729]
[1745359535847,5.92236196,1755.7,1755.1,0.7729]
[1745359536059,0.22642054,1755.7,1755.1,0.7729]
[1745359536273,10.431,1756.4,1755.3,0.7729]
[1745359536472,10.431,1756.4,1755.5,0.7729]
[1745359536473,5.69394016,1756.3,1755.5,0.7729]
[1745359536678,0.17607064,1756.3,1755.5,0.7729]
[1745359536881,1.80613288,1756.3,1755.5,0.7729]
[1745359537050,0.17607064,1756.3,1755.6,0.05695673]
[1745359537251,0.17607064,1756.3,1755.7,0.7729]
[1745359537673,10.431,1756.9,1755.7,5.69546887]
[1745359537980,10.431,1757.4,1756.2,3.7729]
[1745359538182,0.14943233,1756.8,1756.3,0.82982363]
[1745359538356,10.431,1757.4,1756.4,0.7729]
[1745359538558,1.0431,1757.3,1756.4,1.53014214]
[1745359538773,5.69142524,1757.1,1756.4,0.7729]
[1745359538980,5.981,1757.2,1756.4,0.7729]
[1745359539299,5.69199779,1756.9,1756.4,0.7729]
[1745359539782,0.14943233,1756.8,1756.4,0.7729]
[1745359539982,0.73357534,1756.8,1756.4,0.7729]
[1745359540180,10.429,1756.7,1756.4,0.7729]
[1745359540563,0.14829426,1756.6,1756.4,0.7729]
[1745359540949,10.429,1757.2,1756.4,0.7729]
[1745359541356,0.13882853,1757.1,1756.4,0.7729]
[1745359541555,7.45606941,1757.1,1756.4,0.7729]
[1745359541774,5.69153402,1757.0,1756.4,0.7729]
[1745359541966,7.45614023,1757.1,1756.4,0.7729]
[1745359542291,5.69196793,1756.9,1756.4,0.7729]
[1745359542500,0.55,1756.6,1755.7,0.8045]
[1745359542787,10.427,1756.5,1755.7,0.8045]
[1745359543086,17.29837827,1756.5,1755.7,0.8045]
[1745359543293,11.6051147,1756.5,1755.7,0.8045]
[1745359543507,11.6051147,1756.5,1755.8,0.0569472]
[1745359543877,10.5624147,1756.5,1755.8,0.0569472]
[1745359544074,10.5624147,1756.5,1755.7,0.8045]
[1745359544304,16.25577084,1756.5,1755.7,0.8045]
[1745359544606,10.5624147,1756.5,1755.7,0.8045]
[1745359544899,0.1354147,1756.5,1755.8,0.05694725]
[1745359545198,0.1354147,1756.5,1755.8,1.26009123]
[1745359545399,5.69251159,1756.7,1755.8,1.26009123]
[1745359545601,0.1348455,1756.4,1755.8,0.8045]